Cogmind - Beta 13 @@@ ROGUE MODE // 2024.05.18 @ 19:45:52 Player: NQH Result: Destroyed by S-10 Pest with Light Assault Rifle Performance ------------- Evolutions (2) 1000 Regions Visited (5) 1000 Robots Destroyed (48) 240 Value Destroyed (1435) 1435 Prototype IDs (2) 40 Alien Tech Used (0) 0 Bonus (466) 466 TOTAL SCORE: 4181 Bonus ------- High Alert Combat Kills 112 Follower Combat Kills 85 Aligned with FarCom 300 Friendly Fire -31 Cogmind --------- Core Integrity 0/550 Matter 300/300 Energy 100/100 System Corruption 5% Temperature Cool (0) Movement Core (50) Location -8/Materials Parts ------- > --- POWER (1) -------- (None) > --- PROPULSION (2) --- (None) > --- UTILITY (4) ------ Improved Targeting Computer > --- WEAPON (4) ------- (None) > --- INVENTORY (5) ---- Compact Matter Pod (150) Signal Interpreter Improved Targeting Computer Peak State ------------ > --- POWER ------------ Improved Ion Engine > --- PROPULSION ------- Carbon-fiber Leg Carbon-fiber Leg > --- UTILITY ---------- Advanced Weight Redist. System Signal Interpreter Improved Targeting Computer System Shield > --- WEAPON ----------- YOLO Cannon Improved Assault Rifle > --- INVENTORY -------- Improved Aluminum Leg Compact Matter Pod Signal Interpreter Improved Targeting Computer [Rating: 40] Favorites ----------- Power Light Nuclear Core Engine Light Ion Engine Power Core Light Nuclear Core Propulsion Aluminum Leg Treads Light Treads Leg Aluminum Leg Flight Unit Flight Unit Utility Signal Interpreter Device Advanced Weight Redist. System Storage Small Storage Unit Processor Signal Interpreter Hackware System Shield Weapon YOLO Cannon Energy Gun Small Laser Energy Cannon YOLO Cannon Ballistic Gun Improved Assault Rifle Launcher Rocket Launcher Build | -11 -10 -10 -10 -9 -8 ------- Run | Yrd Mat Min Exi Min Mat Slots Evolved 4 | . . . . . 4 Power . | . . . . . . Propulsion . | . . . . . . Utility 2 | . . . . . 2 Weapon 2 | . . . . . 2 Parts Attached 38 | 6 12 . 3 6 11 Power 5 | 1 3 . . . 1 Engine 3 | 1 1 . . . 1 Core 2 | . 2 . . . . Reactor . | . . . . . . Propulsion 13 | 2 2 . . 4 5 Treads 3 | 2 . . . . 1 Leg 7 | . . . . 3 4 Wheel . | . . . . . . Hover . | . . . . . . Flight 3 | . 2 . . 1 . Utility 7 | 1 3 . . . 3 Device 1 | . . . . . 1 Storage 2 | 1 . . . . 1 Processor 3 | . 3 . . . . Hackware 1 | . . . . . 1 Protection . | . . . . . . Artifact . | . . . . . . Weapon 13 | 2 4 . 3 2 2 Energy Gun 2 | 2 . . . . . Energy Cannon 2 | . . . 1 1 . Ballistic Gun 6 | . 3 . 2 . 1 Ballistic Cannon . | . . . . . . Launcher 3 | . 1 . . 1 1 Special Weapon . | . . . . . . Impact Weapon . | . . . . . . Slashing Weapon . | . . . . . . Piercing Weapon . | . . . . . . Special Melee Weapon . | . . . . . . Unidentified Prototypes 2 | . 1 . 1 . . Parts Lost 15 | . 2 . . . 13 Power 2 | . . . . . 2 Propulsion 5 | . . . . . 5 Utility 4 | . 1 . . . 3 Weapon 4 | . 1 . . . 3 Highest Loss Streak 9 | . 2 . . . 9 To Critical Strikes . | . . . . . . Average Slot Usage (%) 74 | . 88 100 69 64 72 Engine 2 | . 8 . . . 4 Core 10 | . 5 14 14 14 4 Treads 3 | . 24 . . . . Leg 5 | . . . . 6 15 Flight 5 | . 3 28 8 1 . Device 1 | . . . . . 7 Processor 24 | . 20 28 28 28 17 Energy Gun 1 | . 8 . . . . Energy Cannon 8 | . . . 10 13 8 Ballistic Gun 7 | . 12 28 7 . 8 Launcher 1 | . 1 . . . 4 Naked Turns . | . . . . . . Heaviest Build 32 | 10 14 11 23 23 32 Greatest Support 40 | 40 40 8 8 20 30 Greatest Overweight (x) 7 | . 1 3 7 7 2 Average Overweight (x) 1 | . . 1 3 4 . Largest Inventory Capacity 8 | 8 8 5 5 5 5 Average Capacity 5 | 6 5 5 5 5 5 Most Carried 8 | 3 8 5 5 5 4 Average Carried 4 | 1 4 4 4 4 3 Final Capacity 8 | 8 5 5 5 5 5 Final Carried 5 | 2 5 5 5 5 3 Class Distribution -------------------- 78% | Mutant 21% | Skirmisher Dominant Class ---------------- Mutant | -10/Materials Mutant | -10/Mines Mutant | -10/Exiles Mutant | -9/Mines Skirmisher | -8/Materials Resources | -11 -10 -10 -10 -9 -8 ----------- Run | Yrd Mat Min Exi Min Mat Matter Collected 733 | 159 293 33 . 70 178 Remotely . | . . . . . . Salvage Created 1499 | . 278 . . 53 1168 Parts 84 | . 21 . . 4 59 Haulers Intercepted 1 | . . . . . 1 Recyclers Shooed . | . . . . . . Parts Field Recycled . | . . . . . . Retrieved Matter . | . . . . . . Parts Self-Destructed . | . . . . . . Prevented . | . . . . . . Kills | -11 -10 -10 -10 -9 -8 ------- Run | Yrd Mat Min Exi Min Mat Combat Hostiles Destroyed 31 | . 11 . . 2 18 Guns 10 | . 10 . . . . Cannons 5 | . . . . . 5 AOE 11 | . 1 . . 2 8 Classes Destroyed 11 | . 2 . . . 9 Worker 7 | . . . . . 7 Builder 6 | . . . . . 6 Hauler 1 | . . . . . 1 Carrier 1 | . . . . . 1 Watcher 2 | . . . . . 2 Swarmer 6 | . 6 . . . . Grunt 17 | . 5 . . 2 10 Brawler 2 | . . . . . 2 Duelist 2 | . . . . . 2 Sentry 2 | . . . . . 2 Hunter 2 | . . . . . 2 Best Kill Streak 14 | . 4 . . 2 14 Combat Bots Only 7 | . 4 . . 2 7 Max Kills in Single Turn 6 | . 2 . . 1 6 Gunslinging 1 | . 1 . . . . Exploded 2 | . 1 . . 1 2 Melee . | . . . . . . Uniques/NPCs Destroyed . | . . . . . . Combat | -11 -10 -10 -10 -9 -8 -------- Run | Yrd Mat Min Exi Min Mat Hostile Shots Fired 153 | . 50 . . . 103 Missed 45 | . 16 . . . 29 Damage Taken 1624 | . 428 . . 49 1147 Core 417 | . 58 . . 48 311 Absorbed by Shields . | . . . . . . Core Remaining (%) 78 | 100 . . . 57 . Volleys Fired 62 | . 36 . . 7 19 Largest 3 | . 2 . . 1 3 Hottest 156 | . 80 . . 100 156 Shots Fired 78 | . 51 . . 7 20 Gun 48 | . 47 . . . 1 Cannon 21 | . . . . 3 18 Launcher 9 | . 4 . . 4 1 Special . | . . . . . . Kinetic 26 | . 25 . . . 1 Thermal 43 | . 22 . . 3 18 Explosive 9 | . 4 . . 4 1 Electromagnetic . | . . . . . . Robot Hit Streak 18 | . 12 . . 14 18 Robot Miss Streak 8 | . 8 . . . 2 Penetration Max . | . . . . . . Secondary Targets 1 | . 1 . . . . Max Gunslinging Chain 1 | . 1 . . . . Shots Hit Robots 50 | . 35 . . 2 13 Core Hits 52 | . 16 . . 5 31 Critical Kills 5 | . . . . . 5 Critical Parts Destroyed . | . . . . . . Critical Strikes 5 | . . . . . 5 Meltdown 5 | . . . . . 5 Melee Attacks . | . . . . . . Impact . | . . . . . . Slashing . | . . . . . . Piercing . | . . . . . . Sneak Attacks . | . . . . . . Combat Hostiles . | . . . . . . Follow-up Attacks . | . . . . . . Damage Inflicted 4232 | . 641 . . 186 3405 Guns 441 | . 441 . . . . Cannons 1532 | . . . . . 1532 Explosions 2181 | . 200 . . 184 1797 Melee . | . . . . . . Ramming 78 | . . . . 2 76 Kinetic 318 | . 318 . . . . Thermal 3368 | . 123 . . . 3245 Explosive 468 | . 200 . . 184 84 Electromagnetic . | . . . . . . Impact . | . . . . . . Slashing . | . . . . . . Piercing . | . . . . . . Highest Corruption 5 | . . . . . 5 Average Corruption 4 | . . . . . 4 Corruption Purged . | . . . . . . Corruption Blocked . | . . . . . . Effects 1 | . . . . . 1 Heat Flow Errors 1 | . . . . . 1 Overload Shots . | . . . . . . Overflow Damage 384 | . . . . . 384 Projectiles 316 | . . . . . 316 Explosions 68 | . . . . . 68 Melee . | . . . . . . Knockbacks . | . . . . . . Impact . | . . . . . . Kinetic . | . . . . . . Secondary . | . . . . . . Self-Inflicted Damage 432 | . 56 . . 49 327 Shots 8 | . 2 . . 1 5 Rammed 23 | . . . . 2 21 Targets Rammed 29 | . . . . 2 27 Kicked 6 | . . . . . 6 Crushed . | . . . . . . Highest Temperature 126 | . 126 . . 104 101 Average Temperature 38 | . 48 . . 49 26 Received Heat Transfer 273 | . 129 . . . 144 Siege Activations . | . . . . . . Robots Corrupted . | . . . . . . Combat Hostiles . | . . . . . . Parts Fried . | . . . . . . Impact Corruptions . | . . . . . . Robots Melted 6 | . . . . . 6 Combat Hostiles 5 | . . . . . 5 Parts Melted 6 | . . . . . 6 Heat Transferred 3155 | . 275 . . . 2880 Parts Sabotaged . | . . . . . . Parts Stolen . | . . . . . . Parts Stripped . | . . . . . . Power Chain Reactions . | . . . . . . Alert | -11 -10 -10 -10 -9 -8 ------- Run | Yrd Mat Min Exi Min Mat Peak Influence 753 | . 256 49 . 98 753 Initial 49 | . . 49 . . 37 Average 138 | . 100 49 . 11 412 Maximum Alert Level 3 | . 1 . . . 3 Low Security (%) 79 | 100 80 100 . 100 34 Level 1 7 | . 19 . . . 13 Level 2 3 | . . . . . 14 Level 3 9 | . . . . . 37 Level 4 . | . . . . . . Level 5 . | . . . . . . High Security . | . . . . . . Max Security . | . . . . . . Squads Dispatched 5 | . 1 . . 1 3 Investigation 2 | . 1 . . 1 . Extermination . | . . . . . . Reinforcement 1 | . . . . . 1 Assault 1 | . . . . . 1 Garrison 1 | . . . . . 1 Intercept . | . . . . . . Searches Triggered . | . . . . . . Construction Impeded . | . . . . . . Haulers Reinforced . | . . . . . . Active Scanning Responses . | . . . . . . Cargo Convoy Interrupts . | . . . . . . Stealth | -11 -10 -10 -10 -9 -8 --------- Run | Yrd Mat Min Exi Min Mat Distress Signals 2 | . . . . . 2 Communications Jammed . | . . . . . . Distress Signals . | . . . . . . Times Spotted 44 | . 13 . . 1 30 Peak Tracking Total 5 | . 5 . . 1 5 Tactical Retreats 1 | . 1 . . . . Traps | -11 -10 -10 -10 -9 -8 ------- Run | Yrd Mat Min Exi Min Mat Traps Triggered 3 | . 2 . . . 1 Indirectly . | . . . . . . Trap Hack Attempts . | . . . . . . Triggered . | . . . . . . Disarmed . | . . . . . . Reprogrammed . | . . . . . . Reused . | . . . . . . Traps Extracted . | . . . . . . Installed . | . . . . . . Triggered . | . . . . . . Machines | -11 -10 -10 -10 -9 -8 ---------- Run | Yrd Mat Min Exi Min Mat Machines Disabled 6 | . 1 . . 1 4 Max in Single Turn 1 | . 1 . . . 1 Garrison Access 1 | . . . . . 1 Machines Repaired . | . . . . . . Machines Dismantled . | . . . . . . Machines Sabotaged . | . . . . . . Overloaded Fab Kills . | . . . . . . Hacking | -11 -10 -10 -10 -9 -8 --------- Run | Yrd Mat Min Exi Min Mat Machines Accessed 5 | . 2 . 1 1 1 Terminals 3 | . 2 . . . 1 Fabricators . | . . . . . . Repair Stations . | . . . . . . Recycling Units . | . . . . . . Scanalyzers . | . . . . . . Garrison Access . | . . . . . . Total Hacks 19 | . 6 . 9 1 3 Successful 14 | . 3 . 9 1 1 Failed 5 | . 3 . . . 2 Catastrophic . | . . . . . . Database Lockouts . | . . . . . . Manual 5 | . . . 1 . 4 Terminals 9 | . 6 . . . 3 Fabricators . | . . . . . . Repair Stations . | . . . . . . Recycling Units . | . . . . . . Scanalyzers . | . . . . . . Garrison Access . | . . . . . . Terminal Hacks 14 | . 3 . 9 1 1 Record 11 | . 2 . 9 . . Open Door 1 | . . . . 1 . Alert Level 2 | . 1 . . . 1 Fabricator Hacks . | . . . . . . Repair Station Hacks . | . . . . . . Recycling Unit Hacks . | . . . . . . Scanalyzer . | . . . . . . Garrison Access Hacks . | . . . . . . Unauthorized Hacks . | . . . . . . Terminals . | . . . . . . Fabricators . | . . . . . . Repair Stations . | . . . . . . Recycling Units . | . . . . . . Scanalyzers . | . . . . . . Garrison Access . | . . . . . . Data Cores Recovered . | . . . . . . Used . | . . . . . . Hacking Detections 3 | . 2 . . . 1 Full Trace Events 3 | . 2 . . . 1 Feedback Events . | . . . . . . Feedback Blocked . | . . . . . . Robot Schematics Acquired . | . . . . . . Robots Built . | . . . . . . Authchips . | . . . . . . Time . | . . . . . . Total Robot Build Rating . | . . . . . . Part Schematics Acquired . | . . . . . . Parts Built . | . . . . . . Authchips . | . . . . . . Time . | . . . . . . Total Part Build Rating . | . . . . . . Parts Repaired . | . . . . . . Time . | . . . . . . Parts Recycled . | . . . . . . Recycled Matter . | . . . . . . Retrieved Matter . | . . . . . . Retrieved Components . | . . . . . . Parts Scanalyzed . | . . . . . . Part Schematics Acquired . | . . . . . . Parts Damaged . | . . . . . . Bothacking | -11 -10 -10 -10 -9 -8 ------------ Run | Yrd Mat Min Exi Min Mat Used RIF Installer . | . . . . . . Robots Hacked . | . . . . . . Non-combat . | . . . . . . Combat . | . . . . . . Robot Hacks Applied . | . . . . . . Relay Couplers Released 1 | . . . . . 1 Machine Destruction 1 | . . . . . 1 Fabnet Peak Effective % . | . . . . . . Robots Rewired . | . . . . . . Allies Hacked . | . . . . . . Hacks Repelled . | . . . . . . Allies | -11 -10 -10 -10 -9 -8 -------- Run | Yrd Mat Min Exi Min Mat Total Allies 3 | . . . . 3 . Largest Group 3 | . . . . 3 . Highest-Rated Group 40 | . . . . 40 . Highest-Rated Ally 16 | . . . . 16 . Total Orders . | . . . . . . Ally Attacks 19 | . . . . 19 . Total Damage 232 | . . . . 232 . Kills 3 | . . . . 3 . Allies Corrupted . | . . . . . . Allies Melted . | . . . . . . Intel | -11 -10 -10 -10 -9 -8 ------- Run | Yrd Mat Min Exi Min Mat Robot Analysis Total . | . . . . . . Derelict Logs Recovered 4 | . . 2 . 2 . Drone Launches . | . . . . . . Drone Recoveries . | . . . . . . Exploration | -11 -10 -10 -10 -9 -8 ------------- Run | Yrd Mat Min Exi Min Mat Turns Passed 3697 | 112 564 334 619 1250 818 Spaces Moved 1668 | 64 335 266 255 363 385 Core 370 | 2 2 14 112 226 14 Treads 309 | 62 235 . . . 12 Legs 487 | . . . . 128 359 Wheels . | . . . . . . Hover . | . . . . . . Flight 502 | . 98 252 143 9 . Fastest Speed 37 | 50 37 117 37 120 50 Average Speed 196 | 156 130 121 239 328 157 Slowest Speed 435 | 160 160 200 400 435 260 Overloaded Moves . | . . . . . . Propulsion Burnouts . | . . . . . . Robots Hopped 1 | . 1 . . . . Cave-ins Triggered . | . . . . . . Exploration Rate (%) 45 | 4 45 74 43 70 38 Regions Visited 5 Branch Regions 3 Pre-discovered Areas 1 | . . . . 1 . Known Exits Taken 4 | . 1 1 1 1 . Unknown Exits Taken 1 | 1 . . . . . Scrap Searched 1 | . . . . 1 . Spaces Dug . | . . . . . . Terrain Destroyed 285 | . 31 . . 71 183 Melee . | . . . . . . Projectile 6 | . . . . 2 4 AOE 279 | . 31 . . 69 179 Terrain Rammed . | . . . . . . Walls Destroyed . | . . . . . . Machines Disabled . | . . . . . . Actions | -11 -10 -10 -10 -9 -8 --------- Run | Yrd Mat Min Exi Min Mat Total 1962 | 73 408 277 268 402 534 Wait 129 | . 14 10 . 15 90 Move 1661 | 63 332 265 254 362 385 Hop 1 | . 1 . . . . Pick Up 17 | 3 6 1 3 4 . Fast Attach 27 | 6 11 . 1 3 6 Attach 7 | . . . 1 2 4 Detach 3 | . 2 . . . 1 Swap 4 | . 1 . 1 1 1 Drop 22 | 1 5 1 8 6 1 Fire 62 | . 36 . . 7 19 Melee . | . . . . . . Ram 23 | . . . . 2 21 Kick 6 | . . . . . 6 Crush . | . . . . . . Escape Stasis . | . . . . . . Rewire . | . . . . . . Trap . | . . . . . . Miscellaneous . | . . . . . . Route ------- -11/Scrapyard -10/Materials -10/Mines (discovered 2 exits: *Mat / *Exi) -10/Exiles -9/Mines (discovered 2 exits: *Mat x2) -8/Materials (discovered 1 exit: *Fac) History --------- Turn | Location | Event 7 | -11/Scrapyard | Discovered new exit (range 15) 113 | -11/Scrapyard | Entered Materials 317 | -10/Materials | Build established: Mutant 554 | -10/Materials | Discovered new exit (range 11) 573 | -10/Materials | Identified exit to Mines 677 | -10/Materials | Entered Mines 708 | -10/Mines | Discovered new exit (range 9) 716 | -10/Mines | Identified exit to Materials 790 | -10/Mines | Learned Materials emergency access door positions 796 | -10/Mines | Learned 2 Materials zone layouts 1005 | -10/Mines | Deemed a non-threat by the Exiles lab entrance 1006 | -10/Mines | Discovered new exit (range 5) 1009 | -10/Mines | Identified exit to Exiles 1011 | -10/Mines | Entered Exiles 1040 | -10/Exiles | Met 8R-AWN 1057 | -10/Exiles | Met EX-HEX 1103 | -10/Exiles | Met EX-BIN 1124 | -10/Exiles | Aligned with FarCom system 1125 | -10/Exiles | Given EX-Vault access code 1167 | -10/Exiles | Opened EX-Vault 1184 | -10/Exiles | Found Prototype Energy Cannon 1186 | -10/Exiles | Identified YOLO Cannon 1274 | -10/Exiles | Warned to stay clear of 0b10 Research branches 1566 | -10/Exiles | Discovered new exit (range 15) 1622 | -10/Exiles | Identified exit to Mines 1630 | -10/Exiles | Left Exiles lab with YOLO Cannon 1630 | -10/Exiles | Entered Mines 1662 | -9/Mines | Learned Materials terminal intel 1662 | -9/Mines | Assisted by bots powering up and referring to "LRC-V3" 1815 | -9/Mines | Discovered new exit (range 5) 1827 | -9/Mines | Identified exit to Materials 2506 | -9/Mines | Met a Derelict shopkeep closing up shop 2647 | -9/Mines | Learned location of Zion (-7) 2665 | -9/Mines | Received a Rocket Launcher from a helpful Derelict 2741 | -9/Mines | Discovered exit to Materials (range 8) 2880 | -9/Mines | Entered Materials 2880 | -8/Materials | Evolved 4 slots: Utility x2, Weapon x2 2883 | -8/Materials | Loaded intel: 12 terminal locations 3184 | -8/Materials | Build established: Skirmisher 3236 | -8/Materials | Garrison activated, responded to threat 3284 | -8/Materials | Destroyed 7 combat bots 3349 | -8/Materials | Lost 3 parts (1p1n1w) 3490 | -8/Materials | Discovered new exit (range 8) 3497 | -8/Materials | Identified exit to Factory 3661 | -8/Materials | Core integrity fell below 50% 3685 | -8/Materials | Core integrity fell below 20% 3698 | -8/Materials | Destroyed by S-10 Pest with Light Assault Rifle Last Messages --------------- 03670_ Kicked S-10 Pest. 03670_ R-06 Scavenger collects Flight Unit. 03672_ Carbon-fiber Leg destroyed. 03672_ Slammed into S-10 Pest. 03674_ Destabilizing: System corrupted (+1). 03675_ Slammed into S-10 Pest. 03675_ Adv. Weight Redist. System destroyed. 03675_ System corrupted by crushing effect (+4). 03676_ Slammed into S-10 Pest. 03676_ U-05 Engineer builds a Wall. 03677_ Slammed into S-10 Pest. 03678_ U-05 Engineer lays Concrete. 03680_ U-05 Engineer builds a Wall. 03680_ Imp. Aluminum Leg destroyed. 03681_ System corrupted: Heat flow error (+132). 03681_ Acquired 5 matter. 03684_ Slammed into S-10 Pest. 03689_ Imp. Targeting Computer broken. 03689_ Destabilizing: Short circuit. 03690_ Slammed into S-10 Pest. Map ----- +----------------------------------------------------+ | ?????????????????????????????????# """ #???? | | ?????????????????????????????????# #???? | | ?????????????????????????????????# #???? | | ?????????????????????????????????+ """ #???? | | ?????????????????????????????????# """ ##### | | ?????????????????????????????????# """ # * | | ??????????????????################ # | | ??????????????????# ]# # | | ??????????????????# """ """ # %%% # | | ??????????????????# """ """ + %%% / | | ??????????????????# """ """ # %% # | | ??????????????????# !# # | | ??????????????????# ! [%[# # | | ??????????????????###### ######## = # | | ????????????????????############# ####" | | ????????????????????# ! %% | | ????????????????????# =! % % % % | | ?????????????????##?# %%% | | ?????????????##### ## #################### ##### | | ????????????? # %# %*% # ### | | ?????????????""""" # #* ####### #?# | | ???????????# """"" " ; # ##?????# #?### | | ????###????# """"" " ; ###########??????# #???# | | ???## ###### " %s%#????????????????# ###?# | | ???# # """"" "%%%#s#????????????????# #?# | | ???# ""# """"" "%#%#@#???????########## #?# | | ???# Y"# """"" ###%#s#???????# # #?# | | ???# ""# #?# ###???????# # #?# | | ???# ##########?# #?????????# # ### | | ???# """ #??????????# #?????????# # ### | | ???#""""" #??????????# #?????????# + ### | | ???#""""" #??????????# #?????????# #[% | | ####""""" #???????#### #?????????# " | | ## """ #???????# #?????????# # #[% | | " ## #???????# ##+#?????????# # # [ | | " ########+######??#?# #????????######+###| +%[ | | " # #????# #?????????????# ### # % | | + #????# #?????????????# ### %#*! | | " # #????#" #????????????## ### " | | ""###+####+## #????#T #????????????# # | | S"## # #????#" ############## ### | | ## """ "# #????# ## # #?? | | #### """ "# #????###### [[ # ########## #?? | | ???# """ "# ##????????# [[ # #????????# #?? | | ???# T# ????????# [[ + #????????# #?? | | ???# """ "# ##????????# # ########## #?? | | ???????????"??????????????# [ # # # #?? | | ???????????"??????????????# # # """ # #?? | | ??????????????????????????####+## # """ # ### | | ?????????????????????????????# # [ """ # * | +----------------------------------------------------+ Best States ------------- Heat Dissipation 31 Energy Generation 14 Energy Capacity 265 Matter Stores 300 Matter Capacity 300 Sight Range 16 Terrain Scan Density 10 Additional Mass Support 9 Evasion (%) 62 Targeting Accuracy 6 Recoil Reduction 2 Defensive Hacking 10 Item Schematics ----------------- None Robot Schematics ------------------ None Fabricated ------------ Nothing Alien Tech Used ----------------- None Achievements -------------- Preemptive Strike Challenges ------------ None Game ------ Seed ChainGyrokineticFirepult Manual? 0 Play Time 00:22:53 Cumulative 10.2 hours Start 2024.05.18 @ 15:49:25 End 2024.05.18 @ 19:45:52 Sessions 3 Manual Loads 0 Difficulty Rogue Special Mode None Game No. 21 Rogue 21 Adventurer 0 Explorer 0 Win Type - Total 0 Types 0/0/0/0/0/0/0/0/0 Lore% 15 Gallery% 22 Achievement% 16 Wizard Run 0 Options --------- Layout 1 ASCII 0 Keyboard 0 Movement Numpad Keybinds 0 Fullscreen 1 Font 24/Smallcaps Map View 50x35 Zoom Use 0% Tactical HUD 1 Map Filters NONE Filters NONE Steam 1 RUN: 0fea2c85-0a72-42fa-a3fd-0bcb68cfcc6f